bitfinex/quotes_ETHUSD_20260228
["timestamp","ask_amount","ask_price","bid_price","bid_amount"]
[1772247957667,0.47337265,1930.4,1930.1,0.49866228]
[1772247958081,1.76844652,1930.4,1930.1,0.49866228]
[1772247958373,0.001,1930.5,1930.3,0.49756228]
[1772247960898,0.001,1930.5,1930.4,0.49756228]
[1772247961787,0.001,1930.5,1930.3,2.08956228]
[1772247962100,0.47437265,1930.5,1930.3,1.592]
[1772247964146,0.47437265,1930.5,1930.2,1.594]
[1772247964310,0.47437265,1930.5,1930.2,2.09156228]
[1772247966303,0.001,1930.4,1930.2,3.38676205]
[1772247966885,0.001,1930.4,1930.3,0.49756228]
[1772247971630,0.001,1930.4,1930.3,1.79269775]
[1772247975484,0.001,1930.4,1930.3,0.49756228]
[1772247975809,0.001,1930.4,1930.2,2.44524047]
[1772247978311,0.001,1930.4,1930.3,0.0011]
[1772247979312,0.46136245,1930.4,1930.3,0.0011]
[1772247979482,0.001,1930.4,1930.3,0.0011]
[1772247986118,0.001,1930.4,1930.3,0.46161855]
[1772248000548,0.001,1930.4,1930.3,2.07961855]
[1772248001850,0.46036245,1930.6,1930.3,3.37475314]
[1772248002052,0.49353798,1930.7,1930.3,3.36991048]
[1772248002859,0.49353798,1930.7,1930.3,3.36990026]
[1772248003064,1.78841351,1930.7,1930.3,2.07477589]
[1772248003235,0.49353798,1930.7,1930.3,2.07477589]
[1772248007465,0.49353798,1930.6,1930.3,2.07477589]
[1772248013531,0.49353798,1930.6,1930.3,3.36990662]
[1772248014369,0.49353798,1930.6,1930.3,2.07477589]
[1772248014858,0.49353798,1930.6,1930.4,0.0011]
[1772248015062,0.001,1930.5,1930.4,0.45677589]
[1772248015626,1.78838828,1930.8,1930.4,0.45677589]
[1772248016130,0.49353798,1930.7,1930.4,0.45677589]
[1772248016453,0.49353798,1930.7,1930.4,0.0011]
[1772248016685,0.49353798,1930.7,1930.4,1.6251]
[1772248017667,0.49353798,1930.6,1930.4,1.6251]
[1772248025288,0.49353798,1930.8,1930.4,2.92015747]
[1772248025441,0.49353798,1930.8,1930.5,0.45567589]
[1772248027369,0.49353798,1930.8,1930.5,0.45677589]
[1772248029475,0.49507684,1931.0,1930.5,0.0011]
[1772248030660,0.49507684,1931.0,1930.5,1.6291]
[1772248031715,0.46081723,1930.8,1930.5,1.6291]
[1772248034901,0.46081723,1930.7,1930.4,0.0011]
[1772248035566,0.46081723,1930.6,1930.4,0.0011]
[1772248036160,0.46081723,1930.6,1930.2,0.0011]
[1772248036161,0.46081723,1930.4,1930.2,0.0011]
[1772248038297,0.46081723,1930.2,1930.0,0.0011]
[1772248040277,0.46081723,1930.1,1930.0,0.0011]
[1772248041577,1.75675913,1930.6,1930.1,0.49135344]
[1772248041773,1.75675844,1930.6,1930.1,0.49135344]
[1772248042098,0.46081723,1930.5,1930.1,0.49135344]
[1772248043601,0.46081723,1930.5,1930.1,1.78661349]
[1772248045406,0.46081723,1930.5,1930.2,0.49135344]
[1772248046103,0.46181723,1930.6,1930.2,0.49135344]
[1772248046570,0.46081723,1930.5,1930.2,0.49135344]
[1772248046977,0.001,1930.6,1930.2,0.49135344]
[1772248047191,0.46181723,1930.6,1930.2,0.49135344]
[1772248047399,1.75675749,1930.6,1930.2,0.49135344]
[1772248050409,0.46081723,1930.5,1930.2,0.49135344]
[1772248053295,0.001,1930.4,1930.2,0.49135344]
[1772248053495,0.46181723,1930.4,1930.1,0.0011]
[1772248055113,0.46081723,1930.2,1930.1,0.0011]
[1772248061392,0.46436727,1930.3,1930.1,0.0011]
[1772248064321,0.001,1930.4,1930.2,0.45075746]
[1772248064522,1.76044101,1930.4,1930.1,0.45185746]
[1772248064697,1.76044101,1930.4,1930.2,0.0011]
[1772248064698,0.46536727,1930.4,1930.2,0.0011]
[1772248065223,0.001,1930.3,1930.2,0.0011]
[1772248068226,0.46536727,1930.3,1930.1,0.0011]
[1772248076408,0.001,1930.3,1930.1,0.45185746]
[1772248077008,0.001,1930.3,1930.2,0.45185746]
[1772248078131,0.001,1930.3,1930.2,0.0011]
[1772248078635,0.46536727,1930.3,1930.2,0.0011]
[1772248079216,0.001,1930.3,1930.2,0.0011]
[1772248084023,0.001,1930.3,1930.2,0.45185746]
[1772248091245,0.001,1930.3,1930.2,1.74706002]
[1772248091445,0.001,1930.6,1930.4,0.49612626]
[1772248091742,0.001,1930.6,1930.5,0.49612626]
[1772248092328,0.001,1930.6,1930.4,2.13312626]
[1772248094345,0.001,1930.6,1930.4,1.637]
[1772248094532,0.4654652,1930.6,1930.3,0.39076451]
[1772248094727,0.4654652,1930.6,1930.4,1.638]
[1772248100068,0.001,1930.6,1930.4,2.13412626]
[1772248100853,0.001,1930.6,1930.5,0.49612626]
[1772248101268,0.4644652,1930.8,1930.5,0.88689077]
[1772248101464,0.46600406,1931.0,1930.6,0.49612626]
[1772248101777,1.29621249,1931.0,1930.6,0.49612626]
[1772248101964,0.4644652,1930.9,1930.4,3.42914703]
[1772248102466,0.4644652,1930.9,1930.4,1.79114703]
[1772248102669,0.4644652,1930.9,1930.5,1.641]
[1772248104576,1.75921491,1930.9,1930.5,1.641]
[1772248104875,0.4644652,1930.8,1930.5,1.641]
[1772248105586,0.4644652,1930.5,1929.9,0.0011]
[1772248105886,3.51688059,1930.8,1929.9,0.0033]
[1772248105887,0.4644652,1930.3,1929.9,0.0033]
[1772248106654,5.17991069,1930.6,1929.8,3.18783082]
[1772248106655,0.4644652,1930.6,1930.1,0.26145]
[1772248108473,0.4644652,1930.6,1930.0,0.39076451]
[1772248108679,0.4644652,1930.6,1930.1,0.0033]
[1772248108680,0.4644652,1930.4,1930.1,0.0033]
[1772248109273,0.4644652,1930.4,1930.2,0.0033]
[1772248109476,0.4644652,1930.4,1930.1,0.0033]
[1772248110785,1.75960067,1930.3,1930.1,0.0033]
[1772248110985,0.4644652,1930.3,1930.2,0.0033]
[1772248111191,0.4644652,1930.3,1930.1,0.0033]
[1772248111500,0.4644652,1930.3,1930.0,0.0033]
[1772248113180,1.75960067,1930.3,1930.2,0.0011]
[1772248113798,0.4644652,1930.3,1930.2,0.0011]
[1772248114082,1.76050326,1930.5,1930.2,0.0044]
[1772248114483,1.76050326,1930.5,1930.2,0.26585]
[1772248114865,1.29603806,1930.5,1930.3,0.0033]
[1772248115786,1.76050326,1930.5,1930.3,0.0033]
[1772248124484,0.4654652,1930.5,1930.3,0.0033]
[1772248124685,0.4654652,1930.5,1930.2,0.26255]
[1772248124981,0.4654652,1930.5,1930.3,0.0033]
[1772248125629,0.001,1930.4,1930.3,0.0033]
[1772248126395,0.001,1930.4,1930.2,0.26255]
[1772248126692,0.001,1930.4,1930.3,0.0033]
[1772248127220,0.001,1930.4,1930.3,0.26475]
[1772248127530,0.001,1930.4,1930.3,0.0033]
[1772248129809,1.75060028,1930.7,1930.4,0.0033]
[1772248130128,1.75060028,1930.7,1930.4,0.26045]
[1772248131831,1.75060028,1930.7,1930.3,0.26375]
[1772248132128,0.45567264,1930.6,1930.4,0.0033]
[1772248134054,0.45567264,1930.7,1930.4,0.26375]
[1772248134260,0.45567264,1930.7,1930.5,0.0033]
[1772248139643,1.75054322,1930.7,1930.5,0.0033]
[1772248144446,0.45567264,1930.6,1930.5,0.0033]
[1772248146333,0.45567264,1930.5,1930.4,0.0011]
[1772248149956,0.45567264,1930.7,1930.4,0.0011]
[1772248150164,0.45567264,1930.7,1930.5,0.0033]
[1772248150465,0.45567264,1930.7,1930.5,0.0044]
[1772248151463,0.46395083,1930.9,1930.5,0.26485]
[1772248151763,1.75868801,1930.9,1930.6,0.26375]
[1772248152954,1.75868801,1930.9,1930.7,0.0033]
[1772248153541,1.75868801,1930.9,1930.4,0.0011]
[1772248153542,0.46395083,1930.7,1930.4,0.0011]
[1772248155038,1.29493421,1930.6,1930.4,0.0011]
[1772248155356,0.46395083,1930.5,1930.4,0.0011]
[1772248163071,0.46495083,1930.5,1930.4,0.0011]
[1772248173168,0.001,1930.5,1930.4,0.0011]
[1772248174197,0.58620428,1930.8,1930.5,0.26275]
[1772248174198,0.46395083,1930.8,1930.5,0.26275]
[1772248174486,0.58774314,1931.0,1930.5,0.26275]
[1772248174487,1.76019411,1931.0,1930.5,0.26275]
[1772248174670,1.76019411,1931.0,1930.5,0.26385]
[1772248177190,1.76019411,1931.0,1930.6,0.26275]
[1772248187204,1.76019411,1931.0,1930.6,0.26385]
[1772248187394,0.001,1930.9,1930.6,0.26385]
[1772248192407,0.001,1930.9,1930.7,0.26275]
[1772248200212,0.001,1930.8,1930.7,0.26275]
[1772248200794,0.47434526,1931.3,1930.8,0.26275]
[1772248201024,0.47434526,1931.3,1931.0,0.26275]
[1772248202618,1.29444708,1931.4,1931.0,0.26275]
[1772248202792,1.76872784,1931.5,1931.0,0.26275]
[1772248202996,0.47434526,1931.4,1931.0,0.26275]
[1772248204934,1.76879893,1931.4,1931.0,0.26275]
[1772248206024,1.29445367,1931.4,1931.0,0.26275]
[1772248206230,0.47434526,1931.3,1931.0,0.26275]
[1772248206532,1.76879893,1931.4,1931.0,0.26275]
[1772248207034,0.47434526,1931.5,1931.3,0.39061493]
[1772248207207,1.76964116,1931.6,1931.3,0.65336493]
[1772248208419,0.47534526,1931.6,1931.3,0.65336493]
[1772248208594,0.001,1931.6,1931.4,0.26275]
[1772248208789,1.76850105,1931.8,1931.5,0.39061493]
[1772248208994,1.76847624,1931.8,1931.5,0.65336493]
[1772248209195,0.47434526,1931.8,1931.5,0.65336493]
[1772248209703,0.47434526,1931.9,1931.6,0.26275]
[1772248210097,0.00153886,1932.0,1931.8,0.26275]
[1772248211517,0.00153886,1932.0,1931.7,0.65336493]
[1772248211718,0.00153886,1932.0,1931.7,0.26275]
[1772248211719,0.46349785,1932.0,1931.7,0.26275]
[1772248212919,0.45676385,1932.0,1931.7,0.26275]
[1772248220999,0.46195899,1932.1,1931.8,0.26794514]
[1772248221813,1.29391133,1932.2,1931.8,0.26794514]
[1772248222016,0.46195899,1932.1,1931.5,0.26794514]
[1772248222332,0.39061493,1932.0,1931.5,0.26794514]
[1772248222509,0.46195899,1931.9,1931.4,0.26794514]
[1772248223021,0.46195899,1931.7,1931.3,0.839]
[1772248225621,0.46195899,1931.5,1931.4,0.001]
[1772248226119,0.46195899,1931.5,1931.3,0.001]
[1772248226814,0.46195899,1931.3,1931.1,0.0011]
[1772248227013,0.46195899,1931.3,1930.8,0.0011]
[1772248228115,0.46195899,1931.1,1930.8,0.0011]
[1772248229415,0.46195899,1931.1,1930.8,0.27014514]
[1772248230449,1.75639385,1931.4,1931.0,0.26904514]
[1772248230826,0.46195899,1931.3,1930.9,0.39061493]
[1772248232756,1.75649088,1931.2,1930.9,0.39061493]
[1772248234668,0.46195899,1931.2,1930.9,0.65966007]
[1772248235358,1.75640721,1931.4,1931.0,0.26904514]
[1772248235559,0.46195899,1931.3,1931.0,0.26904514]
[1772248237051,0.46195899,1931.5,1931.0,0.26904514]
[1772248238143,0.46195899,1931.5,1930.8,0.27014514]
[1772248238353,0.46195899,1931.5,1930.8,1.87814514]
[1772248239073,0.46195899,1931.3,1930.8,1.87814514]
[1772248239361,0.46195899,1931.3,1930.9,0.0011]
[1772248243466,0.45619998,1931.2,1930.9,0.0011]
[1772248243671,0.45619998,1931.2,1930.9,0.27014514]
[1772248245371,0.001,1931.4,1931.0,0.26904514]
[1772248245555,0.001,1931.4,1931.1,0.26904514]
[1772248245758,0.45719998,1931.4,1930.9,0.0011]
[1772248245957,0.45719998,1931.4,1930.9,0.27014514]
[1772248246664,0.45719998,1931.4,1930.9,0.0011]
[1772248247267,0.45719998,1931.4,1930.9,0.27014514]
[1772248247872,1.29446486,1931.3,1930.9,0.27014514]
[1772248248049,1.75066484,1931.3,1930.9,0.27014514]
[1772248248249,0.45619998,1931.2,1930.9,0.27014514]
[1772248249675,0.45619998,1931.2,1930.9,0.0011]
[1772248249876,0.45619998,1931.0,1930.9,0.0011]
[1772248252678,1.75086595,1931.0,1930.9,0.0011]
[1772248252880,0.45619998,1931.0,1930.9,0.0011]
[1772248253080,0.001,1931.1,1930.9,0.0011]
[1772248253487,1.75179957,1931.1,1930.9,0.0011]
[1772248260586,0.45619998,1931.0,1930.9,0.0011]
[1772248263496,1.75086595,1931.0,1930.9,0.0011]
[1772248263867,0.45619998,1931.0,1930.9,0.0011]
[1772248267698,1.29565266,1931.1,1930.9,0.0011]
[1772248267699,0.45719998,1931.1,1930.9,0.0011]
[1772248267890,0.001,1931.1,1930.9,0.0011]
[1772248270704,0.001,1931.1,1930.9,0.27014514]
[1772248274800,0.49764457,1931.0,1930.8,0.0011]
[1772248276811,0.49764457,1930.9,1930.8,0.0011]
[1772248278712,0.49864457,1930.9,1930.8,0.0011]
[1772248281883,1.79337759,1930.9,1930.8,0.0011]
[1772248282610,0.49864457,1930.9,1930.8,0.0011]
[1772248284037,1.79337759,1930.9,1930.8,0.0011]
[1772248286728,1.29573302,1930.9,1930.8,0.0011]
[1772248287222,0.001,1930.9,1930.8,0.0011]
[1772248290801,0.001,1930.9,1930.8,0.27014514]
[1772248291000,1.001,1931.1,1930.9,0.26904514]
[1772248291716,1.001,1931.1,1930.9,0.58561659]
[1772248291921,1.79309373,1931.4,1931.0,0.26904514]
[1772248292635,1.29544916,1931.4,1931.0,0.26904514]
[1772248294536,0.49864457,1931.4,1931.0,0.26904514]
[1772248295133,0.49864457,1931.4,1930.8,0.0011]
[1772248296041,0.49864457,1931.4,1930.8,0.27014514]
[1772248296644,0.49764457,1931.2,1930.8,0.27014514]
[1772248299331,0.49764457,1931.1,1930.8,0.27014514]
[1772248299508,0.49764457,1931.1,1930.8,0.6607048]
[1772248301352,0.46323916,1931.2,1930.9,0.26904514]
[1772248302250,0.46323916,1931.2,1930.9,0.27014514]
[1772248303123,1.75779968,1931.2,1930.9,0.27014514]
[1772248312154,0.46323916,1931.1,1930.9,0.0011]
[1772248314859,0.46323916,1931.1,1931.0,0.0011]
[1772248315061,0.46423916,1931.1,1931.0,0.0011]
[1772248316230,0.001,1931.1,1931.0,0.0011]
[1772248320976,0.46423916,1931.1,1930.8,0.0011]
[1772248321153,0.46423916,1931.1,1930.8,0.27124514]
[1772248321347,0.46423916,1931.1,1930.8,0.0011]
[1772248323171,0.46323916,1931.0,1930.8,0.0011]
[1772248325649,1.75887449,1931.1,1930.8,0.0011]
[1772248325871,0.46423916,1931.1,1930.8,0.0011]
[1772248326075,0.001,1931.1,1931.0,0.39055966]
[1772248328877,0.001,1931.1,1930.9,0.27124514]
[1772248332777,0.001,1931.1,1931.0,0.39055966]
[1772248332984,1.29544283,1931.4,1931.1,0.27014514]
[1772248332985,0.001,1931.4,1931.1,0.27014514]
[1772248333578,0.48795798,1931.4,1931.1,0.27014514]
[1772248335083,0.48795798,1931.4,1931.2,0.39055966]
[1772248335976,0.48795798,1931.4,1931.1,0.27014514]
[1772248336167,0.48795798,1931.4,1931.1,0.6607048]
[1772248339780,0.001,1931.3,1931.1,0.6607048]
[1772248340283,1.47698933,1931.5,1931.2,0.27014514]
[1772248351894,1.47698933,1931.5,1931.2,0.27124514]
[1772248352193,0.001,1931.4,1931.2,0.27124514]
[1772248353707,0.48795798,1931.4,1931.2,0.0011]
[1772248359073,0.48695798,1931.6,1931.3,0.6607048]
[1772248359273,1.7830361,1931.9,1931.6,0.27014514]
[1772248359575,0.48895798,1931.9,1931.6,0.27014514]
[1772248360390,1.78302987,1931.9,1931.6,0.27014514]
[1772248360992,0.49018667,1931.8,1931.5,0.6607048]
[1772248361405,1.78432577,1931.8,1931.5,0.27014514]
[1772248362998,0.49018667,1931.8,1931.5,0.27014514]
[1772248364905,1.78630338,1931.9,1931.5,0.27014514]
[1772248365107,0.49218667,1931.9,1931.5,0.27014514]
[1772248365292,0.002,1931.9,1931.6,0.27014514]
[1772248365992,0.001,1931.7,1931.6,0.27014514]
[1772248366394,0.002,1931.9,1931.6,0.27014514]
[1772248367787,0.49218667,1931.9,1931.6,0.27014514]
[1772248368886,0.49218667,1932.2,1931.8,0.27014514]
[1772248369085,0.49218667,1932.2,1931.9,1.04466356]
[1772248370625,0.49218667,1932.2,1931.9,2.33871688]
[1772248371222,0.002,1932.2,1932.0,0.45928075]
[1772248374934,0.49218667,1932.2,1931.8,1.29407132]
[1772248375504,0.49218667,1932.2,1931.8,1.75335207]
[1772248378340,0.49218667,1932.2,1931.9,0.001]
[1772248378511,0.002,1932.1,1931.9,0.001]
[1772248380946,0.002,1932.1,1931.9,0.46028075]
[1772248383749,0.49218667,1932.1,1931.9,0.001]
[1772248388252,0.002,1932.1,1931.9,0.46028075]
[1772248389830,1.49911625,1932.1,1931.9,0.46028075]
[1772248391540,1.49911625,1932.1,1932.0,0.001]
[1772248396278,1.49911625,1932.1,1932.0,0.48068607]
[1772248396481,0.99911625,1932.1,1932.0,0.48068607]
[1772248397984,1.48106045,1932.1,1932.0,0.001]
[1772248402580,0.99911625,1932.1,1932.0,0.001]
[1772248402782,0.99911625,1932.1,1932.0,0.26133181]
[1772248403162,0.002,1932.2,1932.0,0.26133181]
[1772248405090,0.002,1932.2,1932.1,0.001]
[1772248411781,0.4829442,1932.3,1932.1,0.001]
[1772248411983,0.4839442,1932.4,1932.1,1.06606888]
[1772248412981,1.77767345,1932.4,1932.1,0.48068607]
[1772248413163,0.4819442,1932.3,1932.1,0.001]
[1772248417696,0.4819442,1932.3,1932.2,0.001]
[1772248418366,0.4839442,1932.3,1932.2,0.001]
[1772248420672,0.002,1932.3,1932.2,0.001]
[1772248430904,0.45828157,1932.3,1932.2,0.001]
[1772248437235,1.75207652,1932.3,1932.2,0.001]
[1772248439615,0.45628157,1932.2,1931.9,0.001]
[1772248439809,0.45628157,1932.0,1931.7,0.001]
[1772248442121,0.45628157,1931.8,1931.7,0.001]
[1772248445122,1.75041139,1931.8,1931.7,0.001]
[1772248447831,1.75030653,1932.0,1931.7,0.001]
[1772248448020,1.75030653,1932.0,1931.7,0.4685477]
[1772248448398,1.29402496,1932.0,1931.7,0.001]
[1772248448613,0.45628157,1931.9,1931.7,0.001]
[1772248453241,1.75034464,1931.9,1931.7,0.001]
[1772248455439,1.75034464,1931.9,1931.8,0.0011]
[1772248457651,0.45628157,1931.9,1931.8,0.0011]
[1772248462449,1.7503444,1931.9,1931.8,0.0011]
[1772248466852,0.45628157,1931.9,1931.8,0.0011]
[1772248468049,0.45828157,1931.9,1931.8,0.0011]
[1772248468250,1.7523444,1931.9,1931.8,0.0011]
[1772248469639,0.002,1931.9,1931.8,0.0011]
[1772248471459,0.48251319,1931.9,1931.8,0.0011]
[1772248474360,0.002,1931.9,1931.8,0.0011]
[1772248485146,0.47207274,1931.9,1931.7,0.001]
[1772248487583,1.76619866,1931.9,1931.7,0.001]
[1772248488365,0.47007274,1931.8,1931.5,0.001]
[1772248489270,0.47007274,1931.8,1931.3,0.0011]
[1772248489840,0.47007274,1931.6,1931.3,0.0011]
[1772248491573,0.47007274,1931.6,1931.4,0.0011]
[1772248491768,1.29533083,1931.5,1931.4,0.0011]
[1772248492071,1.76540357,1931.5,1931.4,0.0011]
[1772248494154,0.47007274,1931.4,1931.1,0.27314085]
[1772248494353,0.47007274,1931.4,1931.1,0.0011]
[1772248496282,1.7645376,1931.3,1931.1,0.0011]
[1772248496669,0.47007274,1931.2,1931.1,0.0011]
[1772248496870,0.47007274,1931.2,1930.9,0.0011]
[1772248498305,1.29459893,1931.1,1930.9,0.0011]
[1772248498463,1.76467167,1931.1,1930.9,0.0011]
[1772248498654,0.47007274,1931.0,1930.9,0.0011]
[1772248498855,0.47007274,1931.0,1930.7,0.0011]
[1772248499084,0.47007274,1930.9,1930.4,0.27424085]
[1772248499860,0.47007274,1930.9,1930.4,0.0011]
[1772248500282,1.76486313,1930.9,1930.4,0.27424085]
[1772248501688,0.47007274,1930.8,1930.4,0.0011]
[1772248502991,0.47007274,1930.6,1930.4,0.0011]
[1772248503690,0.47007274,1930.6,1930.5,0.001]
[1772248504081,0.47007274,1930.6,1930.3,0.0011]
[1772248505100,0.47007274,1930.6,1930.3,0.27424085]
[1772248505301,0.47007274,1931.2,1930.5,0.27314085]
[1772248507080,0.47007274,1931.0,1930.5,0.27314085]
[1772248509603,1.76479291,1931.0,1930.5,0.27314085]
[1772248516503,0.001,1930.9,1930.5,0.27314085]
[1772248516675,0.45467358,1930.9,1930.5,0.27314085]
[1772248516875,0.45467358,1930.9,1930.4,1.29616651]
[1772248517082,0.001,1930.9,1930.5,0.27314085]
[1772248517284,0.001,1930.9,1930.7,0.27314085]
[1772248522509,1.74810822,1931.4,1930.9,0.27314085]
[1772248523184,0.45367358,1931.3,1930.9,0.27314085]
[1772248524411,1.74817806,1931.3,1930.9,0.12314085]
[1772248526318,0.45367358,1931.3,1931.0,0.12314085]
[1772248527591,1.74905251,1931.5,1931.1,0.12314085]
[1772248528897,0.001,1931.2,1931.1,0.12314085]
[1772248529098,1.74905251,1931.5,1931.1,0.12314085]
[1772248529722,0.45367358,1931.4,1931.1,0.12314085]
[1772248530417,0.45367358,1931.4,1931.0,0.70840872]
[1772248531515,1.74808919,1931.4,1931.0,0.70840872]
[1772248531809,1.74808919,1931.4,1931.1,0.12314085]
[1772248533922,0.45367358,1931.3,1931.0,0.58526787]
[1772248534225,0.45367358,1931.3,1931.0,0.70840872]
[1772248537639,0.43399619,1931.3,1931.0,0.70840872]
[1772248538119,0.28399619,1931.3,1931.0,0.70840872]
[1772248541302,0.28399619,1931.3,1931.1,0.0011]
[1772248541503,0.001,1931.2,1931.1,0.0011]
[1772248545228,0.001,1931.2,1931.1,0.29391824]
[1772248552738,0.001,1931.2,1931.1,0.0011]
[1772248555639,0.4590006,1931.2,1931.1,0.0011]
[1772248556130,0.001,1931.2,1931.1,0.0011]
[1772248556738,0.4590006,1931.2,1931.1,0.0011]
[1772248557633,0.001,1931.2,1931.1,0.0011]
[1772248559943,0.001,1931.2,1931.1,0.29391824]
[1772248560343,0.001,1931.5,1931.1,0.29391824]
[1772248560647,0.001,1931.5,1931.4,0.39041101]
[1772248565743,1.75429145,1931.6,1931.4,0.39041101]
[1772248566326,0.4600006,1931.6,1931.4,0.39041101]
[1772248567439,0.002,1931.5,1931.4,0.39041101]
[1772248569244,0.002,1931.8,1931.5,0.29081824]
[1772248569426,0.002,1931.8,1931.6,0.39041101]
[1772248571432,0.45851007,1931.8,1931.6,0.39041101]
[1772248571738,0.45851007,1931.8,1931.5,0.29081824]
[1772248575651,0.45851007,1931.8,1931.6,0.39041101]
[1772248575829,0.002,1931.8,1931.6,0.68122925]
[1772248576456,0.002,1931.8,1931.7,0.29081824]
[1772248576629,0.01564218,1931.9,1931.7,0.29081824]
[1772248578256,6.47316686,1932.1,1931.8,0.68122925]
[1772248578257,1.75387214,1932.1,1931.8,0.68122925]
[1772248578457,0.002,1932.2,1932.0,0.84459338]
[1772248580953,1.29586714,1932.2,1932.0,0.84459338]
[1772248581257,0.45651007,1932.1,1931.7,1.58]
[1772248587765,1.75048841,1932.1,1931.7,2.03418237]
[1772248588146,0.45651007,1932.1,1931.8,0.45418237]
[1772248588774,1.75239982,1932.2,1931.8,0.45418237]
[1772248589144,1.75239982,1932.2,1931.9,0.39041101]
[1772248589870,0.45651007,1932.1,1931.8,0.45418237]
[1772248591074,0.45651007,1932.1,1931.8,0.45518237]
[1772248591253,0.45851007,1932.1,1931.8,0.45518237]
[1772248592468,0.002,1932.1,1931.8,0.45518237]
[1772248592672,0.002,1932.2,1932.0,0.45418237]
[1772248592840,0.002,1932.2,1932.1,0.84459338]
[1772248595858,0.002,1932.3,1932.2,0.45418237]
[1772248597663,0.002,1932.3,1931.8,0.001]
[1772248597664,0.45651007,1932.2,1931.8,0.001]
[1772248599771,1.75043895,1932.1,1931.8,0.001]
[1772248601875,1.75043895,1932.1,1931.8,0.47627689]
[1772248603282,1.75043895,1932.1,1931.9,0.001]
[1772248603584,1.75243895,1932.1,1931.9,0.001]
[1772248606792,1.75243957,1932.1,1931.9,0.001]
[1772248612690,0.45851007,1932.1,1931.9,0.001]
[1772248615892,0.45851007,1932.1,1932.0,0.001]
[1772248618094,1.75243895,1932.1,1932.0,0.001]
[1772248620188,0.45851007,1932.1,1932.0,0.001]
[1772248621980,0.002,1932.1,1932.0,0.001]
[1772248622181,0.45490289,1932.1,1931.9,0.001]
[1772248627602,0.002,1932.2,1932.0,0.47527689]
[1772248628293,0.002,1932.2,1932.0,0.47627689]
[1772248629378,0.002,1932.1,1932.0,0.47627689]
[1772248629904,0.002,1932.2,1932.1,0.47527689]
[1772248634199,0.002,1932.3,1932.2,0.49226573]
[1772248638014,0.002,1932.3,1932.1,1.07749275]
[1772248640991,0.002,1932.2,1932.1,1.07749275]
[1772248641514,0.002,1932.3,1932.1,1.07749275]
[1772248645519,0.47296972,1932.3,1932.0,2.06726573]
[1772248645818,0.002,1932.3,1932.1,0.49226573]
[1772248650717,0.002,1932.3,1932.0,1.575]
[1772248650904,0.47096972,1932.2,1932.0,0.001]
[1772248652225,0.47096972,1932.2,1931.9,0.001]
[1772248652437,0.47096972,1932.2,1932.1,0.001]
[1772248652891,1.76683163,1932.2,1932.1,0.001]
[1772248653211,1.29586191,1932.2,1931.9,0.001]
[1772248653422,0.47096972,1932.1,1931.9,0.001]
[1772248660442,0.002,1932.2,1931.9,0.50000306]
[1772248660738,0.002,1932.3,1932.1,0.48632263]
[1772248661218,0.002,1932.3,1932.2,0.48632263]
[1772248666839,0.002,1932.4,1932.2,0.48632263]
[1772248670453,0.46390205,1932.4,1932.1,0.38998645]
[1772248670743,0.46390205,1932.4,1932.0,0.0011]
[1772248671221,0.46390205,1932.4,1932.0,0.48742263]
[1772248674546,0.46390205,1932.4,1932.1,0.38998645]
[1772248675151,0.46390205,1932.4,1932.1,0.87630908]
[1772248675847,0.002,1932.4,1932.2,0.48632263]
[1772248677048,0.002,1932.3,1932.1,0.87730908]
[1772248677627,0.46390205,1932.3,1932.1,0.001]
[1772248678455,1.7577245,1932.3,1932.1,0.001]
[1772248682138,0.46190205,1932.2,1932.1,0.001]
[1772248682539,0.46190205,1932.2,1931.8,0.001]
[1772248682743,0.46190205,1932.2,1931.5,0.001]
[1772248682944,0.46190205,1932.2,1931.6,0.002]
[1772248683545,0.38998645,1932.1,1931.6,0.002]
[1772248683859,0.46190205,1932.0,1931.6,0.002]
[1772248686161,0.46190205,1931.8,1931.6,0.002]
[1772248688663,0.46190205,1931.8,1931.7,0.0011]
[1772248688844,1.75603187,1931.8,1931.7,0.0011]
[1772248689561,0.46190205,1931.7,1931.4,0.0011]
[1772248689765,0.46190205,1931.7,1931.3,0.001]
[1772248689960,0.46190205,1931.7,1931.3,0.002]
[1772248691464,0.45147518,1931.5,1931.3,0.002]
[1772248691965,1.29426382,1931.6,1931.3,0.47198169]
[1772248692167,1.29426382,1931.6,1931.4,0.001]
[1772248692367,1.29426382,1931.6,1931.4,0.47098169]
[1772248693370,1.74572342,1931.7,1931.5,0.001]
[1772248693545,0.45247518,1931.9,1931.4,0.86096814]
[1772248693873,0.45247518,1931.9,1931.5,0.47098169]
[1772248693874,1.74658714,1931.9,1931.5,0.47098169]
[1772248694567,1.74658714,1931.9,1931.5,0.46998169]
[1772248696872,0.001,1931.9,1931.7,0.46998169]
[1772248697673,0.45247518,1931.9,1931.6,0.38998645]
[1772248697972,0.45247518,1931.9,1931.6,0.86096814]
[1772248700873,0.001,1931.9,1931.7,0.47098169]
[1772248701253,0.45147518,1931.8,1931.7,0.001]
[1772248701569,0.45147518,1931.8,1931.6,0.0011]
[1772248702850,1.29419682,1931.7,1931.6,0.0011]
[1772248703055,0.45147518,1931.6,1931.3,0.001]
[1772248707552,1.29431698,1931.6,1931.3,0.47098169]
[1772248708947,1.74659083,1931.9,1931.5,0.46998169]
[1772248709164,1.74659083,1931.9,1931.6,0.85996814]
[1772248710753,0.45147518,1931.8,1931.5,0.46998169]
[1772248712682,1.74564474,1931.8,1931.5,0.47108169]
[1772248712883,1.74664474,1931.8,1931.5,0.47108169]
[1772248719184,1.29516956,1931.8,1931.5,0.47108169]
[1772248719386,0.001,1931.8,1931.5,0.47108169]
[1772248719586,1.29513211,1931.8,1931.5,0.47108169]
[1772248720281,0.001,1931.8,1931.6,0.85449647]
[1772248720481,1.29513089,1931.8,1931.6,0.85449647]
[1772248721089,0.001,1931.8,1931.6,0.85449647]
[1772248724483,0.001,1931.8,1931.7,0.46451002]
[1772248729095,0.001,1931.9,1931.7,0.46451002]
[1772248729597,0.001,1931.9,1931.7,1.04979096]
[1772248729903,0.001,1931.9,1931.8,0.46451002]
[1772248730997,1.29391129,1932.2,1931.8,0.46451002]
[1772248733502,1.75533303,1932.2,1931.8,0.46451002]
[1772248736412,1.75533303,1932.2,1931.8,0.46561002]